Cogmind - Beta 14 @@@ ROGUE MODE // 2024.11.17 @ 15:12:07 Player: BUDA Result: Destroyed self with Rocket Launcher Performance ------------- Evolutions (1) 500 Regions Visited (5) 1000 Robots Destroyed (68) 340 Value Destroyed (1321) 1321 Prototype IDs (3) 60 Alien Tech Used (0) 0 Bonus (-168) -168 TOTAL SCORE: 3053 Bonus ------- Follower Combat Kills 75 Friendly Fire -243 Cogmind --------- Core Integrity 0/400 Matter 237/300 Energy 95/100 System Corruption 2% Temperature Cool (0) Movement Core (100) Ox1 Location -9/Exiles Parts ------- > --- POWER (1) -------- (None) > --- PROPULSION (2) --- (None) > --- UTILITY (4) ------ Improved Targeting Computer > --- WEAPON (2) ------- Rocket Launcher > --- INVENTORY (5) ---- Cooling System Improved Light Cannon Rocket Launcher Scythe Peak State ------------ > --- POWER ------------ Improved Ion Engine > --- PROPULSION ------- Light Treads Light Treads > --- UTILITY ---------- High-capacity Storage Unit Improved Terrain Scanner Improved Targeting Computer Light Armor Plating > --- WEAPON ----------- Improved EM Shotgun Scythe > --- INVENTORY -------- Ion Engine Aluminum Leg Cooling System Improved Targeting Computer Improved Weapon Shielding Light Armor Plating Light Armor Plating Hardlight Generator Shield Generator Heavy EM Pulse Gun EM Shotgun Light Assault Rifle Light Assault Rifle Grenade Launcher Grenade Launcher Rocket Launcher Rocket Launcher Rocket Launcher Datajack Heavy Hammer [Rating: 20] Favorites ----------- Power Ion Engine Engine Ion Engine Power Core Light Nuclear Core Propulsion Light Treads Treads Light Treads Leg Aluminum Leg Utility High-capacity Storage Unit Device Improved Terrain Scanner Storage High-capacity Storage Unit Processor Improved Targeting Computer Protection Light Armor Plating Weapon Light Assault Rifle Energy Gun Heavy EM Pulse Gun Ballistic Gun Light Assault Rifle Launcher Grenade Launcher Impact Weapon Maul Slashing Weapon Scythe Build | -11 -10 -10 -9 -9 -9 ------- Run | Yrd Mat Min Mat Min Exi Slots Evolved 2 | . . . 2 . . Power . | . . . . . . Propulsion . | . . . . . . Utility 2 | . . . 2 . . Weapon . | . . . . . . Parts Attached 49 | 7 11 3 25 . 3 Power 6 | 1 1 . 4 . . Engine 5 | 1 1 . 3 . . Core 1 | . . . 1 . . Reactor . | . . . . . . Propulsion 9 | 3 2 . 4 . . Treads 7 | 1 2 . 4 . . Leg 2 | 2 . . . . . Wheel . | . . . . . . Hover . | . . . . . . Flight . | . . . . . . Utility 10 | 1 2 . 7 . . Device 3 | . . . 3 . . Storage 2 | 1 1 . . . . Processor 1 | . . . 1 . . Hackware . | . . . . . . Protection 4 | . 1 . 3 . . Artifact . | . . . . . . Weapon 24 | 2 6 3 10 . 3 Energy Gun 5 | . . . 5 . . Energy Cannon . | . . . . . . Ballistic Gun 8 | 2 2 1 3 . . Ballistic Cannon . | . . . . . . Launcher 7 | . 2 1 1 . 3 Special Weapon . | . . . . . . Impact Weapon 3 | . 2 1 . . . Slashing Weapon 1 | . . . 1 . . Piercing Weapon . | . . . . . . Special Melee Weapon . | . . . . . . Unidentified Prototypes 1 | . . . 1 . . Parts Lost 17 | . 1 . 7 1 8 Power 2 | . 1 . . . 1 Propulsion 5 | . . . 3 . 2 Utility 3 | . . . 1 . 2 Weapon 7 | . . . 3 1 3 Highest Loss Streak 8 | . 1 . 5 1 8 To Critical Strikes . | . . . . . . Average Slot Usage (%) 94 | . 95 100 97 96 88 Engine 11 | . 14 14 10 11 10 Treads 22 | . 17 28 21 22 21 Leg 1 | . 10 . . . . Device 7 | . . . 10 11 10 Storage 11 | . 14 14 11 11 10 Processor 7 | . . . 10 11 11 Protection 11 | . 10 14 11 11 10 Energy Gun 4 | . . . 14 7 . Ballistic Gun 11 | . 22 14 4 11 10 Launcher 1 | . . 10 . . . Impact Weapon 1 | . 5 3 1 . . Peak Build Rating 20 | 6 10 10 20 17 16 Average Rating 13 | 5 8 9 16 16 15 On Entrance 9 | . 6 10 10 17 15 Naked Turns . | . . . . . . Heaviest Build 58 | 10 49 49 58 53 53 Greatest Support 43 | 20 40 40 43 43 43 Greatest Overweight (x) 2 | 1 1 1 2 1 1 Average Overweight (x) . | . . 1 1 1 . Largest Inventory Capacity 20 | 8 20 20 20 20 20 Average Capacity 19 | 7 15 20 20 20 19 Most Carried 20 | 5 15 17 20 18 20 Average Carried 16 | 3 11 15 19 18 17 Final Capacity 20 | 8 20 20 20 20 5 Final Carried 18 | 5 14 16 18 18 4 Class Distribution -------------------- 99% | Mutant Dominant Class ---------------- Mutant | -10/Materials Mutant | -10/Mines Mutant | -9/Materials Mutant | -9/Mines Mutant | -9/Exiles Resources | -11 -10 -10 -9 -9 -9 ----------- Run | Yrd Mat Min Mat Min Exi Matter Collected 1094 | 298 67 274 446 9 . Remotely . | . . . . . . Salvage Created 1837 | 135 225 228 1236 11 2 Parts 130 | 11 15 18 86 . . Haulers Intercepted 1 | . . . 1 . . Recyclers Shooed 6 | . 1 . 5 . . Parts Field Recycled . | . . . . . . Retrieved Matter . | . . . . . . Parts Self-Destructed . | . . . . . . Prevented . | . . . . . . Kills | -11 -10 -10 -9 -9 -9 ------- Run | Yrd Mat Min Mat Min Exi Combat Hostiles Destroyed 45 | . 8 8 26 1 2 Guns 32 | . 4 4 23 1 . AOE 13 | . 4 4 3 . 2 Classes Destroyed 11 | 3 4 . 3 1 . Worker 5 | 1 1 3 . . . Builder 5 | . 1 2 2 . . Tunneler 6 | 3 . 3 . . . Hauler 1 | . . . 1 . . Recycler 3 | 1 . . 2 . . Mechanic 1 | . . . 1 . . Watcher 4 | . 1 . 3 . . Swarmer 18 | . 3 7 8 . . Grunt 18 | . 5 2 11 . . Sentry 7 | . . . 7 . . Assembled 3 | . . . . 1 2 Best Kill Streak 5 | 3 4 3 5 1 2 Combat Bots Only 4 | . 3 3 4 1 2 Max Kills in Single Turn 2 | 1 2 2 2 1 1 Gunslinging 1 | . . . 1 . . Exploded 2 | . 1 2 1 . 1 Melee . | . . . . . . Uniques/NPCs Destroyed . | . . . . . . Combat | -11 -10 -10 -9 -9 -9 -------- Run | Yrd Mat Min Mat Min Exi Hostile Shots Fired 216 | . 31 29 106 4 46 Missed 48 | . 11 5 24 . 8 Damage Taken 2507 | . 185 239 1225 47 811 Core 520 | . 33 52 192 10 233 Absorbed by Shields 5 | . . . 5 . . Redirected to Shielding 1 | . . 1 . . . Core Remaining (%) 83 | 100 . 66 . . . Volleys Fired 172 | 19 24 30 87 4 8 Largest 2 | 2 2 1 2 1 1 Hottest 90 | 40 40 30 90 20 33 Shots Fired 276 | 38 40 31 155 4 8 Gun 249 | 38 32 23 151 4 1 Cannon . | . . . . . . Launcher 27 | . 8 8 4 . 7 Special . | . . . . . . Kinetic 171 | 38 32 23 73 4 1 Thermal . | . . . . . . Explosive 27 | . 8 8 4 . 7 Electromagnetic 78 | . . . 78 . . Robot Hit Streak 15 | 7 5 8 15 3 . Robot Miss Streak 5 | 2 3 3 5 1 . Penetration Max . | . . . . . . Secondary Targets 4 | . . . 4 . . Max Gunslinging Chain 1 | . . . 1 . . Shots Hit Robots 189 | 24 22 20 120 3 . Core Hits 125 | 8 21 22 63 3 8 Critical Kills . | . . . . . . Critical Parts Destroyed 3 | . . 3 . . . Critical Strikes 3 | . . 3 . . . Smash 3 | . . 3 . . . Melee Attacks 13 | . 6 6 1 . . Impact 12 | . 6 6 . . . Slashing 1 | . . . 1 . . Piercing . | . . . . . . Sneak Attacks 7 | . 1 6 . . . Combat Hostiles . | . . . . . . Follow-up Attacks . | . . . . . . Damage Inflicted 3943 | 194 587 1009 1932 25 196 Guns 2021 | 194 165 100 1537 25 . Cannons . | . . . . . . Explosions 1418 | . 369 474 379 . 196 Melee 465 | . 50 415 . . . Ramming 39 | . 3 20 16 . . Kinetic 1090 | 194 165 100 606 25 . Thermal 129 | . . . 129 . . Explosive 1289 | . 369 474 250 . 196 Electromagnetic 931 | . . . 931 . . Impact 465 | . 50 415 . . . Slashing . | . . . . . . Piercing . | . . . . . . Highest Corruption 2 | . 1 1 . . 2 Average Corruption 1 | . 1 1 . . 1 Corruption Purged . | . . . . . . Corruption Blocked . | . . . . . . Effects 11 | . . 11 . . . Message Errors 6 | . . 6 . . . Matter Fused 3 | . . 3 . . . Data Loss (major) 1 | . . 1 . . . Misfires 1 | . . 1 . . . Overload Shots . | . . . . . . Overflow Damage 404 | . 30 337 37 . . Projectiles . | . . . . . . Explosions 69 | . . 32 37 . . Melee 335 | . 30 305 . . . Knockbacks 4 | . 1 3 . . . Impact 4 | . 1 3 . . . Kinetic . | . . . . . . Secondary . | . . . . . . Self-Inflicted Damage 324 | . . 40 198 . 86 Shots 8 | . . 1 5 . 2 Rammed 8 | . . 4 4 . . Targets Rammed 9 | . 1 4 4 . . Kicked 1 | . 1 . . . . Crushed . | . . . . . . Highest Temperature 114 | . 6 1 114 . . Average Temperature 24 | . 3 1 24 . . Received Heat Transfer 465 | . 48 6 411 . . Siege Activations . | . . . . . . Robots Corrupted 4 | . . 4 . . . Combat Hostiles . | . . . . . . Parts Fried 9 | . . 8 1 . . Impact Corruptions 13 | . 1 12 . . . Robots Melted . | . . . . . . Combat Hostiles . | . . . . . . Parts Melted . | . . . . . . Heat Transferred 150 | . . . 150 . . Parts Sabotaged . | . . . . . . Parts Stolen . | . . . . . . Parts Stripped . | . . . . . . Power Chain Reactions 4 | . . . 4 . . Alert | -11 -10 -10 -9 -9 -9 ------- Run | Yrd Mat Min Mat Min Exi Peak Influence 349 | 25 131 171 349 116 . Initial 111 | . 16 16 48 111 . Average 99 | 9 67 73 133 112 . Maximum Alert Level 1 | . . . 1 . . Low Security (%) 91 | 100 100 100 81 100 . Level 1 8 | . . . 18 . . Level 2 . | . . . . . . Level 3 . | . . . . . . Level 4 . | . . . . . . Level 5 . | . . . . . . High Security . | . . . . . . Max Security . | . . . . . . Squads Dispatched 6 | . 4 . 2 . . Investigation 2 | . 2 . . . . Extermination . | . . . . . . Reinforcement 4 | . 2 . 2 . . Assault . | . . . . . . Garrison . | . . . . . . Intercept . | . . . . . . Searches Triggered . | . . . . . . Construction Impeded . | . . . . . . Haulers Reinforced . | . . . . . . Active Scanning Responses . | . . . . . . Cargo Convoy Interrupts . | . . . . . . Stealth | -11 -10 -10 -9 -9 -9 --------- Run | Yrd Mat Min Mat Min Exi Distress Signals 7 | . . . 7 . . Communications Jammed . | . . . . . . Distress Signals . | . . . . . . Times Spotted 82 | . 17 11 47 1 6 Peak Tracking Total 11 | . 3 3 5 1 11 Tactical Retreats 4 | . 2 . 1 . 1 Traps | -11 -10 -10 -9 -9 -9 ------- Run | Yrd Mat Min Mat Min Exi Traps Triggered 1 | . 1 . . . . Indirectly . | . . . . . . Trap Hack Attempts . | . . . . . . Triggered . | . . . . . . Disarmed 4 | . 4 . . . . Reprogrammed . | . . . . . . Reused . | . . . . . . Traps Extracted . | . . . . . . Installed . | . . . . . . Triggered . | . . . . . . Machines | -11 -10 -10 -9 -9 -9 ---------- Run | Yrd Mat Min Mat Min Exi Machines Disabled 6 | . . 1 3 . 2 Max in Single Turn 2 | . . 1 2 . 1 Machines Repaired . | . . . . . . Machines Dismantled . | . . . . . . Machines Sabotaged . | . . . . . . Overloaded Fab Kills . | . . . . . . Hacking | -11 -10 -10 -9 -9 -9 --------- Run | Yrd Mat Min Mat Min Exi Machines Accessed 13 | . 5 . 7 . 1 Terminals 12 | . 5 . 7 . . Fabricators . | . . . . . . Repair Stations . | . . . . . . Recycling Units . | . . . . . . Scanalyzers . | . . . . . . Garrison Access . | . . . . . . Total Hacks 40 | . 16 . 20 . 4 Successful 23 | . 7 . 12 . 4 Failed 17 | . 9 . 8 . . Catastrophic 5 | . 4 . 1 . . Database Lockouts . | . . . . . . Manual 27 | . 13 . 14 . . Terminals 36 | . 16 . 20 . . Fabricators . | . . . . . . Repair Stations . | . . . . . . Recycling Units . | . . . . . . Scanalyzers . | . . . . . . Garrison Access . | . . . . . . Terminal Hacks 14 | . 4 . 6 . 4 Record 4 | . . . . . 4 Prototype ID Bank 1 | . . . 1 . . Branch Access Points 2 | . 1 . 1 . . Unreport Threat 2 | . 1 . 1 . . Disarm Traps 1 | . 1 . . . . Transport Status 1 | . . . 1 . . Recall Reinforcements 2 | . 1 . 1 . . Hauler Manifests 1 | . . . 1 . . Fabricator Hacks . | . . . . . . Repair Station Hacks . | . . . . . . Recycling Unit Hacks . | . . . . . . Scanalyzer . | . . . . . . Garrison Access Hacks . | . . . . . . Unauthorized Hacks 9 | . 3 . 6 . . Terminals 9 | . 3 . 6 . . Track 1 | . . . 1 . . Botnet 7 | . 3 . 4 . . Operators 1 | . . . 1 . . Fabricators . | . . . . . . Repair Stations . | . . . . . . Recycling Units . | . . . . . . Scanalyzers . | . . . . . . Garrison Access . | . . . . . . Data Cores Recovered . | . . . . . . Used . | . . . . . . Hacking Detections 11 | . 5 . 6 . . Full Trace Events 1 | . 1 . . . . Feedback Events 1 | . 1 . . . . Corruption 1 | . 1 . . . . Feedback Blocked . | . . . . . . Robot Schematics Acquired . | . . . . . . Robots Built . | . . . . . . Authchips . | . . . . . . Time . | . . . . . . Total Robot Build Rating . | . . . . . . Part Schematics Acquired . | . . . . . . Parts Built . | . . . . . . Authchips . | . . . . . . Time . | . . . . . . Total Part Build Rating . | . . . . . . Parts Repaired . | . . . . . . Time . | . . . . . . Parts Recycled . | . . . . . . Recycled Matter . | . . . . . . Retrieved Matter . | . . . . . . Retrieved Components . | . . . . . . Parts Scanalyzed . | . . . . . . Part Schematics Acquired . | . . . . . . Parts Damaged . | . . . . . . Bothacking | -11 -10 -10 -9 -9 -9 ------------ Run | Yrd Mat Min Mat Min Exi Used RIF Installer . | . . . . . . Robots Hacked . | . . . . . . Non-combat . | . . . . . . Combat . | . . . . . . Robot Hacks Applied . | . . . . . . Relay Couplers Released . | . . . . . . Fabnet Peak Effective % . | . . . . . . Robots Rewired . | . . . . . . Allies Hacked . | . . . . . . Hacks Repelled . | . . . . . . Allies | -11 -10 -10 -9 -9 -9 -------- Run | Yrd Mat Min Mat Min Exi Total Allies 3 | . . 3 . . . Largest Group 3 | . . 3 2 . . Highest-Rated Group 40 | . . 40 32 . . Highest-Rated Ally 16 | . . 16 16 . . Total Orders . | . . . . . . Ally Attacks 25 | . . 10 15 . . Total Damage 277 | . . 73 204 . . Kills 3 | . . 2 1 . . Allies Corrupted . | . . . . . . Allies Melted . | . . . . . . Intel | -11 -10 -10 -9 -9 -9 ------- Run | Yrd Mat Min Mat Min Exi Robot Analysis Total . | . . . . . . Derelict Logs Recovered 1 | . . . . 1 . Drone Launches . | . . . . . . Drone Recoveries . | . . . . . . Exploration | -11 -10 -10 -9 -9 -9 ------------- Run | Yrd Mat Min Mat Min Exi Turns Passed 7289 | 179 1010 1062 2159 267 2612 Spaces Moved 2954 | 97 509 403 749 109 1087 Core 14 | 4 . . . . 10 Treads 2577 | 2 237 403 749 109 1077 Legs 363 | 91 272 . . . . Wheels . | . . . . . . Hover . | . . . . . . Flight . | . . . . . . Fastest Speed 50 | 50 120 240 240 240 50 Average Speed 224 | 118 175 240 240 240 237 Slowest Speed 320 | 160 240 240 320 240 240 Overloaded Moves . | . . . . . . Propulsion Burnouts . | . . . . . . Robots Hopped . | . . . . . . Cave-ins Triggered . | . . . . . . Exploration Rate (%) 59 | 6 80 83 78 21 89 Regions Visited 5 Branch Regions 3 Pre-discovered Areas 1 | . . . . . 1 Known Exits Taken 2 | . 1 . 1 . . Unknown Exits Taken 3 | 1 . 1 . 1 . Scrap Searched 1 | . . 1 . . . Spaces Dug 6 | . 5 . 1 . . Terrain Destroyed 124 | . 19 36 61 . 8 Melee 6 | . 5 . 1 . . Projectile . | . . . . . . AOE 118 | . 14 36 60 . 8 Terrain Rammed . | . . . . . . Walls Destroyed . | . . . . . . Machines Disabled . | . . . . . . Actions | -11 -10 -10 -9 -9 -9 --------- Run | Yrd Mat Min Mat Min Exi Total 3334 | 127 577 455 952 112 1111 Wait 72 | . 12 7 52 . 1 Move 2949 | 96 508 402 748 108 1087 Hop . | . . . . . . Pick Up 40 | 4 12 2 19 . 3 Fast Attach 12 | 7 1 . 4 . . Attach 13 | . 1 1 8 . 3 Detach 2 | 1 . 1 . . . Swap 24 | . 9 2 13 . . Drop 28 | . 3 . 16 . 9 Fire 172 | 19 24 30 87 4 8 Melee 13 | . 6 6 1 . . Ram . | . . . . . . Kick 1 | . 1 . . . . Crush 8 | . . 4 4 . . Escape Stasis . | . . . . . . Rewire . | . . . . . . Trap . | . . . . . . Miscellaneous . | . . . . . . Route ------- -11/Scrapyard -10/Materials (discovered 4 exits: *Mat x2 / *Min x2) -10/Mines (discovered 2 exits: *Mat x2) -9/Materials (discovered 4 exits: *Mat x2 / *Min x2) -9/Mines (discovered 2 exits: Mat / *Exi) -9/Exiles (discovered 2 exits: [*Min x2]) History --------- Turn | Location | Event 10 | -11/Scrapyard | Discovered new exit (range 15) 180 | -11/Scrapyard | Entered Materials 314 | -10/Materials | Build established: Mutant 362 | -10/Materials | Discovered new exit (range 13) 498 | -10/Materials | Discovered new exit (range 6) 665 | -10/Materials | Discovered new exit (range 12) 889 | -10/Materials | Discovered new exit (range 15) 1044 | -10/Materials | Identified exit to Mines 1190 | -10/Materials | Entered Mines 1779 | -10/Mines | Assisted by bots powering up and referring to "LRC-V3" 1882 | -10/Mines | Discovered new exit (range 9) 2235 | -10/Mines | Discovered new exit (range 3) 2252 | -10/Mines | Entered Materials 2252 | -9/Materials | Accompanied by 2 allies 2252 | -9/Materials | Evolved 2 slots: Utility x2 3361 | -9/Materials | Discovered new exit (range 6) 3661 | -9/Materials | Discovered new exit (range 7) 3733 | -9/Materials | Identified exit to Mines 3802 | -9/Materials | Discovered new exit (range 7) 4103 | -9/Materials | Lost 5 parts (1n1u3w) 4411 | -9/Materials | Entered Mines 4423 | -9/Mines | Discovered new exit (range 5) 4551 | -9/Mines | Identified exit to Materials 4593 | -9/Mines | Excavation squad dispatched 4593 | -9/Mines | A large section of the Mines collapsed 4599 | -9/Mines | Core integrity fell below 50% 4678 | -9/Mines | Entered Exiles 4736 | -9/Exiles | Met 8R-AWN 4777 | -9/Exiles | Met EX-HEX 4851 | -9/Exiles | Met EX-BIN 5041 | -9/Exiles | Met EX-DEC 5205 | -9/Exiles | Visited The Gauntlet 5550 | -9/Exiles | Discovered new exit (range 11) 5812 | -9/Exiles | Discovered new exit (range 14) 6977 | -9/Exiles | Learned location of Zion (-7) 7256 | -9/Exiles | Attacked by the Exiles 7284 | -9/Exiles | Core integrity fell below 20% 7290 | -9/Exiles | Destroyed self with Rocket Launcher Last Messages --------------- 07255_ Machine disabled. 07256_ EXILES: Hostile robot within lab perimeter. Defensive protocols time, folks! 07258_ EX-DEC: "Let's see what this bad boy can do..." 07258_ EX-DEC deploys DAS Turret. 07260_ Grenade Launcher destroyed. 07263_ Imp. Terrain Scanner destroyed. 07266_ Ion Engine destroyed. 07267_ Imp. Treads destroyed. 07267_ Dropped Hcp. Storage Unit. 07271_ EX-BIN: "I just want to science!" 07278_ as-13794 destroyed. 07279_ Lgt. Armor Plating destroyed. 07281_ Lgt. Treads destroyed. 07281_ Grenade Launcher destroyed. 07283_ Rigged Rnf. Deuterium Engine explodes. 07283_ Lgt. Assault Rifle destroyed. 07283_ Machine disabled. 07288_ as-30391 destroyed. Map ----- +----------------------------------------------------+ | ?????????????????????????????????????????????????? | | ?????????????????????????????????????????????????? | | ??????????????????##?????????????????????????????? | | ????#????????????????#???????????????????????????? | | ????????#####??#?????????????????????????????????? | | ??????### ##???????#???#????????????????????#??? | | ???????# #?#???#???#??#??????????????????????? | | ???????# < ##????????????#???#?????????????????? | | ???????# ###????????????##???????????????????? | | ????#??# #??????#?#?##???#???#?????????????? | | ???????# ##???##?????????#??#???????????????? | | ???????## #???????????##????#???????????#????? | | ????????# ##?#???#???????##?#????#???????????? | | ?????#??## #???##???????#######????????#?????? | | ?????????# ########??#??#!!! "#?#????#???????? | | ?????????# #""####?#?# "#????###???#???? | | ??????#??## #?##??# "#????????????#?? | | ??#????#??##" ###?### ""##???#?#??###### | | ??????????#"" #####" ""##?###?#???# " | | ??#???#?#?#### ##" ""#??##?##???#"" " | | ?#???????????## #"" #######???#?##"" | | ????#?????????#"## ###?#?##?###?#"" | | #?????#?????#?####### ##?##?#??##??#"" | | #????#?????###??????### "##?###?####?# | | ?????????#????########" ;##???#?#?###"" | | ??????????#??## !!""""" @ ##?########## | | ??????????????#! !!!= ########?### | | ??????????????#! """#####X# | | ???????#??????#! ## # | | ??????????#??## !""""""#######"# * | | ?????????#??############???###### a | | ?????????????????#????#?#????#?#### a | | ??????????????????????#??#??###??#### * | | ?????????????????##?????##???######### !/ | | ???????????????#?????##????##?#??###?##/!] | | ?????????????#??????????#??#?###??##??##!] | | ?????????????#????#???#????#??#?##??####" | | ?????????????#???????????##????##?#?####" | | ??????????????????#????#?#??#?#???????#"" | | ?????????????????????????????????###?##""" | | ??????????????????????????#???#??###?#""" | | ???????????????????????????????#??#??#"" | | ?????????????????????????????#?#?###?#"" | | ?????????????????????????????#??#???##""" | | ??????????????????????????????#?????##"" | | ???????????????????????????????????####"" | | ???????????????????????????????????#?##"" | | ?????????????????????????????????#???### | | ???????????????????????????????????#?#?#" | | ?????????????????????????????????????#?#"""" | +----------------------------------------------------+ Best States ------------- Heat Dissipation 28 Energy Generation 14 Energy Capacity 265 Matter Stores 300 Matter Capacity 300 Sight Range 16 Terrain Scan Range 16 Terrain Scan Density 10 Armor Coverage 150 Utility Shielding 33 Evasion (%) 55 Targeting Accuracy 6 Recoil Reduction 2 Item Schematics ----------------- None Robot Schematics ------------------ None Fabricated ------------ Nothing Alien Tech Used ----------------- None Achievements -------------- None Challenges ------------ None Game ------ Seed LauncherSlugLattice Manual? 0 Play Time 00:44:50 Cumulative 63.9 hours Start 2024.11.16 @ 16:23:18 End 2024.11.17 @ 15:12:07 Sessions 12 Manual Loads 0 Difficulty Rogue Special Mode None Game No. 57 Rogue 57 Adventurer 0 Explorer 0 Win Type - Total 1 Types 1/0/0/0/0/0/0/0/0 Lore% 43 Gallery% 50 Achievement% 44 Wizard Run 0 Options --------- Layout 2 ASCII 0 Keyboard 0 Movement Numpad Keybinds 0 Fullscreen 1 Font 24/Smallcaps Map View 50x44 Zoom Use 0% Tactical HUD 1 Map Filters NONE Filters NONE Steam 1 RUN: 4b8e7c87-0220-4157-aa4d-113188222088